Workbook

Sheet Charter Rate Summary
A1: Massachusetts Department of Elementary and Secondary Education
A2: FY16 Rates by Charter School and Sending District (Q4)
A8: Chalocsend (charter school, district where school is located, sending district) | B8: Cha Lea | C8: Charter School | D8: Campus Lea | E8: Campus Location | F8: Send Lea | G8: Sending District | H8: FTE | I8: Foundation Base Rate | J8: Above Foundation Spending Rate | K8: Facilities Aid Rate | L8: Trans- porta- tion Rate | M8: TOTAL Foundation Formula Rate
A10: 409201201 | B10: 409 | C10: ALMA DEL MAR | D10: 201 | E10: NEW BEDFORD | F10: 201 | G10: NEW BEDFORD | H10: 281.0453074 | I10: 11149 | J10: 191 | K10: 893 | L10: 0 | M10: =SUM(I10:L10) -> 12233
A11: 410035035 | B11: 410 | C11: EXCEL ACADEMY | D11: 35 | E11: BOSTON | F11: 35 | G11: BOSTON | H11: 247.0493421 | I11: 11854 | J11: 3164 | K11: 893 | L11: 0 | M11: =SUM(I11:L11) -> 15911
A12: 410035044 | B12: 410 | C12: EXCEL ACADEMY | D12: 35 | E12: BOSTON | F12: 44 | G12: BROCKTON | H12: 1 | I12: 11839.00296 | J12: 0 | K12: 893 | L12: 0 | M12: 12732.00296
A13: 410035057 | B13: 410 | C13: EXCEL ACADEMY | D13: 35 | E13: BOSTON | F13: 57 | G13: CHELSEA | H13: 285.0592105 | I13: 11826 | J13: 181 | K13: 893 | L13: 0 | M13: 12900
A14: 410035093 | B14: 410 | C14: EXCEL ACADEMY | D14: 35 | E14: BOSTON | F14: 93 | G14: EVERETT | H14: 6 | I14: 12264 | J14: 0 | K14: 893 | L14: 0 | M14: 13157
A15: 410035155 | B15: 410 | C15: EXCEL ACADEMY | D15: 35 | E15: BOSTON | F15: 155 | G15: LEXINGTON | H15: 1 | I15: 9791.761308 | J15: 6738 | K15: 893 | L15: 0 | M15: 17422.76131
A16: 410035163 | B16: 410 | C16: EXCEL ACADEMY | D16: 35 | E16: BOSTON | F16: 163 | G16: LYNN | H16: 3 | I16: 10212 | J16: 1 | K16: 893 | L16: 0 | M16: 11106
A17: 410035165 | B17: 410 | C17: EXCEL ACADEMY | D17: 35 | E17: BOSTON | F17: 165 | G17: MALDEN | H17: 0.125 | I17: 11367.02848 | J17: 350 | K17: 893 | L17: 0 | M17: 12610.02848
A18: 410035248 | B18: 410 | C18: EXCEL ACADEMY | D18: 35 | E18: BOSTON | F18: 248 | G18: REVERE | H18: 16.52631579 | I18: 10828 | J18: 702 | K18: 893 | L18: 0 | M18: 12423
A19: 410035262 | B19: 410 | C19: EXCEL ACADEMY | D19: 35 | E19: BOSTON | F19: 262 | G19: SAUGUS | H19: 1 | I19: 10054.07583 | J19: 3086 | K19: 893 | L19: 0 | M19: 14033.07583
A20: 410035308 | B20: 410 | C20: EXCEL ACADEMY | D20: 35 | E20: BOSTON | F20: 308 | G20: WALTHAM | H20: 2 | I20: 11743.81721 | J20: 6255 | K20: 893 | L20: 0 | M20: 18891.81721
A21: 410035346 | B21: 410 | C21: EXCEL ACADEMY | D21: 35 | E21: BOSTON | F21: 346 | G21: WINTHROP | H21: 4.111842105 | I21: 9730 | J21: 695 | K21: 893 | L21: 0 | M21: 11318
A22: 410057035 | B22: 410 | C22: EXCEL ACADEMY | D22: 57 | E22: CHELSEA | F22: 35 | G22: BOSTON | H22: 75.47039474 | I22: 9784 | J22: 2612 | K22: 893 | L22: 0 | M22: 13289
A23: 410057057 | B23: 410 | C23: EXCEL ACADEMY | D23: 57 | E23: CHELSEA | F23: 57 | G23: CHELSEA | H23: 132.6085526 | I23: 11297 | J23: 173 | K23: 893 | L23: 0 | M23: 12363
A24: 410057093 | B24: 410 | C24: EXCEL ACADEMY | D24: 57 | E24: CHELSEA | F24: 93 | G24: EVERETT | H24: 2 | I24: 11660 | J24: 0 | K24: 893 | L24: 0 | M24: 12553
A25: 410057163 | B25: 410 | C25: EXCEL ACADEMY | D25: 57 | E25: CHELSEA | F25: 163 | G25: LYNN | H25: 4 | I25: 11969.93368 | J25: 1 | K25: 893 | L25: 0 | M25: 12863.93368
A26: 410057165 | B26: 410 | C26: EXCEL ACADEMY | D26: 57 | E26: CHELSEA | F26: 165 | G26: MALDEN | H26: 1 | I26: 11367.02848 | J26: 350 | K26: 893 | L26: 0 | M26: 12610.02848
A27: 410057248 | B27: 410 | C27: EXCEL ACADEMY | D27: 57 | E27: CHELSEA | F27: 248 | G27: REVERE | H27: 6.470394737 | I27: 12051 | J27: 782 | K27: 893 | L27: 0 | M27: 13726
A28: 410057346 | B28: 410 | C28: EXCEL ACADEMY | D28: 57 | E28: CHELSEA | F28: 346 | G28: WINTHROP | H28: 2 | I28: 10021.0697 | J28: 716 | K28: 893 | L28: 0 | M28: 11630.0697
A29: 412035035 | B29: 412 | C29: ACADEMY OF THE PACIFIC RIM | D29: 35 | E29: BOSTON | F29: 35 | G29: BOSTON | H29: 493.4027667 | I29: 11089 | J29: 2960 | K29: 893 | L29: 0 | M29: 14942
A30: 412035044 | B30: 412 | C30: ACADEMY OF THE PACIFIC RIM | D30: 35 | E30: BOSTON | F30: 44 | G30: BROCKTON | H30: 3 | I30: 12062 | J30: 0 | K30: 893 | L30: 0 | M30: 12955
A31: 412035073 | B31: 412 | C31: ACADEMY OF THE PACIFIC RIM | D31: 35 | E31: BOSTON | F31: 73 | G31: DEDHAM | H31: 0.7142857143 | I31: 12062 | J31: 7579 | K31: 893 | L31: 0 | M31: 20534
A32: 412035189 | B32: 412 | C32: ACADEMY OF THE PACIFIC RIM | D32: 35 | E32: BOSTON | F32: 189 | G32: MILTON | H32: 2.853820598 | I32: 11675 | J32: 3741 | K32: 893 | L32: 0 | M32: 16309
A33: 412035207 | B33: 412 | C33: ACADEMY OF THE PACIFIC RIM | D33: 35 | E33: BOSTON | F33: 207 | G33: NEWTON | H33: 0.4518272425 | I33: 9937.557916 | J33: 6081 | K33: 893 | L33: 0 | M33: 16911.55792
A34: 412035220 | B34: 412 | C34: ACADEMY OF THE PACIFIC RIM | D34: 35 | E34: BOSTON | F34: 220 | G34: NORWOOD | H34: 2.594684385 | I34: 13169 | J34: 4110 | K34: 893 | L34: 0 | M34: 18172
A35: 412035244 | B35: 412 | C35: ACADEMY OF THE PACIFIC RIM | D35: 35 | E35: BOSTON | F35: 244 | G35: RANDOLPH | H35: 12.33887043 | I35: 12080 | J35: 3351 | K35: 893 | L35: 0 | M35: 16324
A36: 412035285 | B36: 412 | C36: ACADEMY OF THE PACIFIC RIM | D36: 35 | E36: BOSTON | F36: 285 | G36: STOUGHTON | H36: 2.860465116 | I36: 10331.53295 | J36: 2919 | K36: 893 | L36: 0 | M36: 14143.53295
A37: 412035293 | B37: 412 | C37: ACADEMY OF THE PACIFIC RIM | D37: 35 | E37: BOSTON | F37: 293 | G37: TAUNTON | H37: 1 | I37: 10964.52068 | J37: 334 | K37: 893 | L37: 0 | M37: 12191.52068
A38: 412035314 | B38: 412 | C38: ACADEMY OF THE PACIFIC RIM | D38: 35 | E38: BOSTON | F38: 314 | G38: WATERTOWN | H38: 1 | I38: 12062 | J38: 8959 | K38: 893 | L38: 0 | M38: 21914
A39: 412035336 | B39: 412 | C39: ACADEMY OF THE PACIFIC RIM | D39: 35 | E39: BOSTON | F39: 336 | G39: WEYMOUTH | H39: 2 | I39: 8361 | J39: 318 | K39: 893 | L39: 0 | M39: 9572
A40: 413114024 | B40: 413 | C40: FOUR RIVERS | D40: 114 | E40: GREENFIELD | F40: 24 | G40: BELCHERTOWN | H40: 0.5 | I40: 9568.372187 | J40: 1871 | K40: 893 | L40: 0 | M40: 12332.37219
A41: 413114044 | B41: 413 | C41: FOUR RIVERS | D41: 114 | E41: GREENFIELD | F41: 44 | G41: BROCKTON | H41: 0.5625 | I41: 11839.00296 | J41: 0 | K41: 893 | L41: 0 | M41: 12732.00296
A42: 413114091 | B42: 413 | C42: FOUR RIVERS | D42: 114 | E42: GREENFIELD | F42: 91 | G42: ERVING | H42: 9 | I42: 9299 | J42: 7410 | K42: 893 | L42: 0 | M42: 17602
A43: 413114114 | B43: 413 | C43: FOUR RIVERS | D43: 114 | E43: GREENFIELD | F43: 114 | G43: GREENFIELD | H43: 65.11111111 | I43: 10316 | J43: 1842 | K43: 893 | L43: 0 | M43: 13051
A44: 413114117 | B44: 413 | C44: FOUR RIVERS | D44: 114 | E44: GREENFIELD | F44: 117 | G44: HADLEY | H44: 1 | I44: 12416 | J44: 5415 | K44: 893 | L44: 0 | M44: 18724
A45: 413114210 | B45: 413 | C45: FOUR RIVERS | D45: 114 | E45: GREENFIELD | F45: 210 | G45: NORTHAMPTON | H45: 1.993055556 | I45: 11479 | J45: 3192 | K45: 893 | L45: 0 | M45: 15564
A46: 413114253 | B46: 413 | C46: FOUR RIVERS | D46: 114 | E46: GREENFIELD | F46: 253 | G46: ROWE | H46: 2 | I46: 7892 | J46: 12656 | K46: 893 | L46: 0 | M46: 21441
A47: 413114605 | B47: 413 | C47: FOUR RIVERS | D47: 114 | E47: GREENFIELD | F47: 605 | G47: AMHERST PELHAM | H47: 0.3611111111 | I47: 11479 | J47: 8227 | K47: 893 | L47: 0 | M47: 20599
A48: 413114615 | B48: 413 | C48: FOUR RIVERS | D48: 114 | E48: GREENFIELD | F48: 615 | G48: ATHOL ROYALSTON | H48: 0.4965277778 | I48: 10630.67891 | J48: 1634 | K48: 893 | L48: 0 | M48: 13157.67891
A49: 413114670 | B49: 413 | C49: FOUR RIVERS | D49: 114 | E49: GREENFIELD | F49: 670 | G49: FRONTIER | H49: 17 | I49: 9925 | J49: 7650 | K49: 893 | L49: 0 | M49: 18468
A50: 413114674 | B50: 413 | C50: FOUR RIVERS | D50: 114 | E50: GREENFIELD | F50: 674 | G50: GILL MONTAGUE | H50: 40.5625 | I50: 9696 | J50: 3954 | K50: 893 | L50: 0 | M50: 14543
A51: 413114683 | B51: 413 | C51: FOUR RIVERS | D51: 114 | E51: GREENFIELD | F51: 683 | G51: HAMPSHIRE | H51: 3 | I51: 9607 | J51: 5184 | K51: 893 | L51: 0 | M51: 15684
A52: 413114717 | B52: 413 | C52: FOUR RIVERS | D52: 114 | E52: GREENFIELD | F52: 717 | G52: MOHAWK TRAIL | H52: 46.04166667 | I52: 9824 | J52: 5816 | K52: 893 | L52: 0 | M52: 16533
A53: 413114750 | B53: 413 | C53: FOUR RIVERS | D53: 114 | E53: GREENFIELD | F53: 750 | G53: PIONEER | H53: 14.55555556 | I53: 9810 | J53: 4846 | K53: 893 | L53: 0 | M53: 15549
A54: 413114755 | B54: 413 | C54: FOUR RIVERS | D54: 114 | E54: GREENFIELD | F54: 755 | G54: RALPH C MAHAR | H54: 15 | I54: 9600 | J54: 3490 | K54: 893 | L54: 0 | M54: 13983
A55: 414603063 | B55: 414 | C55: BERKSHIRE ARTS AND TECHNOLOGY | D55: 603 | E55: ADAMS CHESHIRE | F55: 63 | G55: CLARKSBURG | H55: 3 | I55: 10908 | J55: 4237 | K55: 893 | L55: 0 | M55: 16038
A56: 414603098 | B56: 414 | C56: BERKSHIRE ARTS AND TECHNOLOGY | D56: 603 | E56: ADAMS CHESHIRE | F56: 98 | G56: FLORIDA | H56: 3.822147651 | I56: 9607 | J56: 8116 | K56: 893 | L56: 0 | M56: 18616
A57: 414603148 | B57: 414 | C57: BERKSHIRE ARTS AND TECHNOLOGY | D57: 603 | E57: ADAMS CHESHIRE | F57: 148 | G57: LANESBOROUGH | H57: 1 | I57: 9624.3344 | J57: 5880 | K57: 893 | L57: 0 | M57: 16397.3344
A58: 414603150 | B58: 414 | C58: BERKSHIRE ARTS AND TECHNOLOGY | D58: 603 | E58: ADAMS CHESHIRE | F58: 150 | G58: LEE | H58: 1 | I58: 11011 | J58: 7894 | K58: 893 | L58: 0 | M58: 19798
A59: 414603152 | B59: 414 | C59: BERKSHIRE ARTS AND TECHNOLOGY | D59: 603 | E59: ADAMS CHESHIRE | F59: 152 | G59: LENOX | H59: 1.996644295 | I59: 7892 | J59: 10143 | K59: 893 | L59: 0 | M59: 18928
A60: 414603209 | B60: 414 | C60: BERKSHIRE ARTS AND TECHNOLOGY | D60: 603 | E60: ADAMS CHESHIRE | F60: 209 | G60: NORTH ADAMS | H60: 52.2885906 | I60: 10797 | J60: 1779 | K60: 893 | L60: 0 | M60: 13469
A61: 414603236 | B61: 414 | C61: BERKSHIRE ARTS AND TECHNOLOGY | D61: 603 | E61: ADAMS CHESHIRE | F61: 236 | G61: PITTSFIELD | H61: 174.7885906 | I61: 10355 | J61: 1446 | K61: 893 | L61: 0 | M61: 12694
A62: 414603263 | B62: 414 | C62: BERKSHIRE ARTS AND TECHNOLOGY | D62: 603 | E62: ADAMS CHESHIRE | F62: 263 | G62: SAVOY | H62: 3.32885906 | I62: 11011 | J62: 7640 | K62: 893 | L62: 0 | M62: 19544
A63: 414603349 | B63: 414 | C63: BERKSHIRE ARTS AND TECHNOLOGY | D63: 603 | E63: ADAMS CHESHIRE | F63: 349 | G63: WORTHINGTON | H63: 1 | I63: 8749 | J63: 2725 | K63: 893 | L63: 0 | M63: 12367
A64: 414603603 | B64: 414 | C64: BERKSHIRE ARTS AND TECHNOLOGY | D64: 603 | E64: ADAMS CHESHIRE | F64: 603 | G64: ADAMS CHESHIRE | H64: 74.76510067 | I64: 10686 | J64: 1858 | K64: 893 | L64: 0 | M64: 13437
A65: 414603618 | B65: 414 | C65: BERKSHIRE ARTS AND TECHNOLOGY | D65: 603 | E65: ADAMS CHESHIRE | F65: 618 | G65: BERKSHIRE HILLS | H65: 0.2751677852 | I65: 10476.58336 | J65: 7289 | K65: 893 | L65: 0 | M65: 18658.58336
A66: 414603635 | B66: 414 | C66: BERKSHIRE ARTS AND TECHNOLOGY | D66: 603 | E66: ADAMS CHESHIRE | F66: 635 | G66: CENTRAL BERKSHIRE | H66: 13.12751678 | I66: 8991 | J66: 4079 | K66: 893 | L66: 0 | M66: 13963
A67: 414603715 | B67: 414 | C67: BERKSHIRE ARTS AND TECHNOLOGY | D67: 603 | E67: ADAMS CHESHIRE | F67: 715 | G67: MOUNT GREYLOCK | H67: 17.75503356 | I67: 9647 | J67: 8660 | K67: 893 | L67: 0 | M67: 19200
A68: 416035035 | B68: 416 | C68: BOSTON PREPARATORY | D68: 35 | E68: BOSTON | F68: 35 | G68: BOSTON | H68: 399.1029987 | I68: 11875 | J68: 3170 | K68: 893 | L68: 890 | M68: 16828
A69: 416035044 | B69: 416 | C69: BOSTON PREPARATORY | D69: 35 | E69: BOSTON | F69: 44 | G69: BROCKTON | H69: 1 | I69: 13169 | J69: 0 | K69: 893 | L69: 0 | M69: 14062
A70: 416035073 | B70: 416 | C70: BOSTON PREPARATORY | D70: 35 | E70: BOSTON | F70: 73 | G70: DEDHAM | H70: 1 | I70: 13169 | J70: 8275 | K70: 893 | L70: 0 | M70: 22337
A71: 416035093 | B71: 416 | C71: BOSTON PREPARATORY | D71: 35 | E71: BOSTON | F71: 93 | G71: EVERETT | H71: 1 | I71: 11971.68891 | J71: 0 | K71: 893 | L71: 0 | M71: 12864.68891
A72: 416035095 | B72: 416 | C72: BOSTON PREPARATORY | D72: 35 | E72: BOSTON | F72: 95 | G72: FALL RIVER | H72: 0.4668874172 | I72: 11572.25945 | J72: 55 | K72: 893 | L72: 0 | M72: 12520.25945
A73: 416035165 | B73: 416 | C73: BOSTON PREPARATORY | D73: 35 | E73: BOSTON | F73: 165 | G73: MALDEN | H73: 0.6666666667 | I73: 11367.02848 | J73: 350 | K73: 893 | L73: 0 | M73: 12610.02848
A74: 416035189 | B74: 416 | C74: BOSTON PREPARATORY | D74: 35 | E74: BOSTON | F74: 189 | G74: MILTON | H74: 1 | I74: 9456.348416 | J74: 3030 | K74: 893 | L74: 0 | M74: 13379.34842
A75: 416035244 | B75: 416 | C75: BOSTON PREPARATORY | D75: 35 | E75: BOSTON | F75: 244 | G75: RANDOLPH | H75: 4.478547855 | I75: 11675 | J75: 3238 | K75: 893 | L75: 0 | M75: =SUM(I75:L75) -> 15806
A76: 416035285 | B76: 416 | C76: BOSTON PREPARATORY | D76: 35 | E76: BOSTON | F76: 285 | G76: STOUGHTON | H76: 3 | I76: 10331.53295 | J76: 2919 | K76: 893 | L76: 0 | M76: 14143.53295
A77: 416035308 | B77: 416 | C77: BOSTON PREPARATORY | D77: 35 | E77: BOSTON | F77: 308 | G77: WALTHAM | H77: 0.9072847682 | I77: 11743.81721 | J77: 6255 | K77: 893 | L77: 0 | M77: 18891.81721
A78: 417035001 | B78: 417 | C78: BRIDGE BOSTON | D78: 35 | E78: BOSTON | F78: 1 | G78: ABINGTON | H78: 0.8671096346 | I78: 9652.639637 | J78: 2435 | K78: 893 | L78: 0 | M78: 12980.63964
A79: 417035035 | B79: 417 | C79: BRIDGE BOSTON | D79: 35 | E79: BOSTON | F79: 35 | G79: BOSTON | H79: 220.4784053 | I79: 12840 | J79: 3427 | K79: 893 | L79: 0 | M79: 17160
A80: 417035100 | B80: 417 | C80: BRIDGE BOSTON | D80: 35 | E80: BOSTON | F80: 100 | G80: FRAMINGHAM | H80: 0.8571428571 | I80: 11065.81051 | J80: 4777 | K80: 893 | L80: 0 | M80: 16735.81051
A81: 417035133 | B81: 417 | C81: BRIDGE BOSTON | D81: 35 | E81: BOSTON | F81: 133 | G81: HOLBROOK | H81: 1.222591362 | I81: 10653.50817 | J81: 2257 | K81: 893 | L81: 0 | M81: 13803.50817
A82: 417035189 | B82: 417 | C82: BRIDGE BOSTON | D82: 35 | E82: BOSTON | F82: 189 | G82: MILTON | H82: 0.1295681063 | I82: 9456.348416 | J82: 3030 | K82: 893 | L82: 0 | M82: 13379.34842
A83: 417035244 | B83: 417 | C83: BRIDGE BOSTON | D83: 35 | E83: BOSTON | F83: 244 | G83: RANDOLPH | H83: 1 | I83: 14574 | J83: 4042 | K83: 893 | L83: 0 | M83: 19509
A84: 417035274 | B84: 417 | C84: BRIDGE BOSTON | D84: 35 | E84: BOSTON | F84: 274 | G84: SOMERVILLE | H84: 2 | I84: 12466 | J84: 4466 | K84: 893 | L84: 0 | M84: 17825
A85: 417035293 | B85: 417 | C85: BRIDGE BOSTON | D85: 35 | E85: BOSTON | F85: 293 | G85: TAUNTON | H85: 1 | I85: 10964.52068 | J85: 334 | K85: 893 | L85: 0 | M85: 12191.52068
A86: 418100014 | B86: 418 | C86: CHRISTA MCAULIFFE | D86: 100 | E86: FRAMINGHAM | F86: 14 | G86: ASHLAND | H86: 38.9222973 | I86: 8655 | J86: 2765 | K86: 893 | L86: 0 | M86: 12313
A87: 418100035 | B87: 418 | C87: CHRISTA MCAULIFFE | D87: 100 | E87: FRAMINGHAM | F87: 35 | G87: BOSTON | H87: 0.9560810811 | I87: 12549.07724 | J87: 3350 | K87: 893 | L87: 0 | M87: 16792.07724
A88: 418100093 | B88: 418 | C88: CHRISTA MCAULIFFE | D88: 100 | E88: FRAMINGHAM | F88: 93 | G88: EVERETT | H88: 1 | I88: 11971.68891 | J88: 0 | K88: 893 | L88: 0 | M88: 12864.68891
A89: 418100100 | B89: 418 | C89: CHRISTA MCAULIFFE | D89: 100 | E89: FRAMINGHAM | F89: 100 | G89: FRAMINGHAM | H89: 286.347973 | I89: 9426 | J89: 4069 | K89: 893 | L89: 0 | M89: 14388
A90: 418100136 | B90: 418 | C90: CHRISTA MCAULIFFE | D90: 100 | E90: FRAMINGHAM | F90: 136 | G90: HOLLISTON | H90: 8.125 | I90: 8289 | J90: 2499 | K90: 893 | L90: 0 | M90: 11681
A91: 418100139 | B91: 418 | C91: CHRISTA MCAULIFFE | D91: 100 | E91: FRAMINGHAM | F91: 139 | G91: HOPKINTON | H91: 9.064189189 | I91: 8289 | J91: 2371 | K91: 893 | L91: 0 | M91: 11553
A92: 418100170 | B92: 418 | C92: CHRISTA MCAULIFFE | D92: 100 | E92: FRAMINGHAM | F92: 170 | G92: MARLBOROUGH | H92: 8 | I92: 8899 | J92: 2859 | K92: 893 | L92: 0 | M92: 12651
A93: 418100174 | B93: 418 | C93: CHRISTA MCAULIFFE | D93: 100 | E93: FRAMINGHAM | F93: 174 | G93: MAYNARD | H93: 1 | I93: 10007.82101 | J93: 3606 | K93: 893 | L93: 0 | M93: 14506.82101
A94: 418100175 | B94: 418 | C94: CHRISTA MCAULIFFE | D94: 100 | E94: FRAMINGHAM | F94: 175 | G94: MEDFIELD | H94: 1 | I94: 8289 | J94: 3436 | K94: 893 | L94: 0 | M94: 12618
A95: 418100185 | B95: 418 | C95: CHRISTA MCAULIFFE | D95: 100 | E95: FRAMINGHAM | F95: 185 | G95: MILFORD | H95: 4.60472973 | I95: 8289 | J95: 1130 | K95: 893 | L95: 0 | M95: 10312
A96: 418100198 | B96: 418 | C96: CHRISTA MCAULIFFE | D96: 100 | E96: FRAMINGHAM | F96: 198 | G96: NATICK | H96: 28.95945946 | I96: 8653 | J96: 2364 | K96: 893 | L96: 0 | M96: 11910
A97: 418100213 | B97: 418 | C97: CHRISTA MCAULIFFE | D97: 100 | E97: FRAMINGHAM | F97: 213 | G97: NORTHBOROUGH | H97: 1 | I97: 8289 | J97: 5089 | K97: 893 | L97: 0 | M97: 14271
A98: 418100276 | B98: 418 | C98: CHRISTA MCAULIFFE | D98: 100 | E98: FRAMINGHAM | F98: 276 | G98: SOUTHBOROUGH | H98: 0.9560810811 | I98: 9084.850711 | J98: 7272 | K98: 893 | L98: 0 | M98: 17249.85071
A99: 418100288 | B99: 418 | C99: CHRISTA MCAULIFFE | D99: 100 | E99: FRAMINGHAM | F99: 288 | G99: SUDBURY | H99: 3 | I99: 8289 | J99: 4584 | K99: 893 | L99: 0 | M99: 13766
A100: 418100304 | B100: 418 | C100: CHRISTA MCAULIFFE | D100: 100 | E100: FRAMINGHAM | F100: 304 | G100: UXBRIDGE | H100: 1 | I100: 9579.147849 | J100: 1882 | K100: 893 | L100: 0 | M100: 12354.14785
A101: 418100315 | B101: 418 | C101: CHRISTA MCAULIFFE | D101: 100 | E101: FRAMINGHAM | F101: 315 | G101: WAYLAND | H101: 1 | I101: 9389.767299 | J101: 6376 | K101: 893 | L101: 0 | M101: 16658.7673
A102: 418100321 | B102: 418 | C102: CHRISTA MCAULIFFE | D102: 100 | E102: FRAMINGHAM | F102: 321 | G102: WESTBOROUGH | H102: 1 | I102: 9332.059151 | J102: 4765 | K102: 893 | L102: 0 | M102: 14990.05915
A103: 418100655 | B103: 418 | C103: CHRISTA MCAULIFFE | D103: 100 | E103: FRAMINGHAM | F103: 655 | G103: DOVER SHERBORN | H103: 1 | I103: 9625.531347 | J103: 7422 | K103: 893 | L103: 0 | M103: 17940.53135
A104: 418100710 | B104: 418 | C104: CHRISTA MCAULIFFE | D104: 100 | E104: FRAMINGHAM | F104: 710 | G104: MENDON UPTON | H104: 3 | I104: 8289 | J104: 2757 | K104: 893 | L104: 0 | M104: 11939
A105: 419035035 | B105: 419 | C105: HELEN Y. DAVIS LEADERSHIP ACADEMY | D105: 35 | E105: BOSTON | F105: 35 | G105: BOSTON | H105: 201.1412918 | I105: 11379 | J105: 3037 | K105: 893 | L105: 0 | M105: 15309
A106: 419035044 | B106: 419 | C106: HELEN Y. DAVIS LEADERSHIP ACADEMY | D106: 35 | E106: BOSTON | F106: 44 | G106: BROCKTON | H106: 4.941176471 | I106: 12062 | J106: 0 | K106: 893 | L106: 0 | M106: 12955
A107: 419035049 | B107: 419 | C107: HELEN Y. DAVIS LEADERSHIP ACADEMY | D107: 35 | E107: BOSTON | F107: 49 | G107: CAMBRIDGE | H107: 3.429065744 | I107: 12062 | J107: 14241 | K107: 893 | L107: 0 | M107: 27196
A108: 419035133 | B108: 419 | C108: HELEN Y. DAVIS LEADERSHIP ACADEMY | D108: 35 | E108: BOSTON | F108: 133 | G108: HOLBROOK | H108: 1 | I108: 12062 | J108: 2555 | K108: 893 | L108: 0 | M108: 15510
A109: 419035165 | B109: 419 | C109: HELEN Y. DAVIS LEADERSHIP ACADEMY | D109: 35 | E109: BOSTON | F109: 165 | G109: MALDEN | H109: 0.4281045752 | I109: 11367.02848 | J109: 350 | K109: 893 | L109: 0 | M109: 12610.02848
A110: 419035177 | B110: 419 | C110: HELEN Y. DAVIS LEADERSHIP ACADEMY | D110: 35 | E110: BOSTON | F110: 177 | G110: MEDWAY | H110: 1.464052288 | I110: 9420.274704 | J110: 2894 | K110: 893 | L110: 0 | M110: 13207.2747
A111: 419035181 | B111: 419 | C111: HELEN Y. DAVIS LEADERSHIP ACADEMY | D111: 35 | E111: BOSTON | F111: 181 | G111: METHUEN | H111: 0.1895424837 | I111: 10612.58145 | J111: 304 | K111: 893 | L111: 0 | M111: 11809.58145
A112: 419035243 | B112: 419 | C112: HELEN Y. DAVIS LEADERSHIP ACADEMY | D112: 35 | E112: BOSTON | F112: 243 | G112: QUINCY | H112: 1.642060746 | I112: 11816.8097 | J112: 2334 | K112: 893 | L112: 0 | M112: 15043.8097
A113: 419035244 | B113: 419 | C113: HELEN Y. DAVIS LEADERSHIP ACADEMY | D113: 35 | E113: BOSTON | F113: 244 | G113: RANDOLPH | H113: 5.451749327 | I113: 11586 | J113: 3214 | K113: 893 | L113: 0 | M113: 15693
A114: 420049010 | B114: 420 | C114: BENJAMIN BANNEKER | D114: 49 | E114: CAMBRIDGE | F114: 10 | G114: ARLINGTON | H114: 4 | I114: 12382 | J114: 3474 | K114: 893 | L114: 0 | M114: 16749
A115: 420049023 | B115: 420 | C115: BENJAMIN BANNEKER | D115: 49 | E115: CAMBRIDGE | F115: 23 | G115: BEDFORD | H115: 2 | I115: 8884 | J115: 4707 | K115: 893 | L115: 0 | M115: 14484
A116: 420049026 | B116: 420 | C116: BENJAMIN BANNEKER | D116: 49 | E116: CAMBRIDGE | F116: 26 | G116: BELMONT | H116: 2 | I116: 12254 | J116: 3319 | K116: 893 | L116: 0 | M116: 16466
A117: 420049031 | B117: 420 | C117: BENJAMIN BANNEKER | D117: 49 | E117: CAMBRIDGE | F117: 31 | G117: BILLERICA | H117: 1 | I117: 11868 | J117: 5070 | K117: 893 | L117: 0 | M117: 17831
A118: 420049035 | B118: 420 | C118: BENJAMIN BANNEKER | D118: 49 | E118: CAMBRIDGE | F118: 35 | G118: BOSTON | H118: 105.7310345 | I118: 11371 | J118: 3035 | K118: 893 | L118: 0 | M118: 15299
A119: 420049044 | B119: 420 | C119: BENJAMIN BANNEKER | D119: 49 | E119: CAMBRIDGE | F119: 44 | G119: BROCKTON | H119: 2 | I119: 12639 | J119: 0 | K119: 893 | L119: 0 | M119: 13532
A120: 420049049 | B120: 420 | C120: BENJAMIN BANNEKER | D120: 49 | E120: CAMBRIDGE | F120: 49 | G120: CAMBRIDGE | H120: 134.2 | I120: 11416 | J120: 13478 | K120: 893 | L120: 0 | M120: 25787
A121: 420049057 | B121: 420 | C121: BENJAMIN BANNEKER | D121: 49 | E121: CAMBRIDGE | F121: 57 | G121: CHELSEA | H121: 6.310344828 | I121: 10789 | J121: 165 | K121: 893 | L121: 0 | M121: 11847
A122: 420049093 | B122: 420 | C122: BENJAMIN BANNEKER | D122: 49 | E122: CAMBRIDGE | F122: 93 | G122: EVERETT | H122: 38.79310345 | I122: 11678 | J122: 0 | K122: 893 | L122: 0 | M122: 12571
A123: 420049149 | B123: 420 | C123: BENJAMIN BANNEKER | D123: 49 | E123: CAMBRIDGE | F123: 149 | G123: LAWRENCE | H123: 1 | I123: 8884 | J123: 0 | K123: 893 | L123: 0 | M123: 9777
A124: 420049163 | B124: 420 | C124: BENJAMIN BANNEKER | D124: 49 | E124: CAMBRIDGE | F124: 163 | G124: LYNN | H124: 5 | I124: 10136 | J124: 1 | K124: 893 | L124: 0 | M124: 11030
A125: 420049165 | B125: 420 | C125: BENJAMIN BANNEKER | D125: 49 | E125: CAMBRIDGE | F125: 165 | G125: MALDEN | H125: 7.096551724 | I125: 12639 | J125: 390 | K125: 893 | L125: 0 | M125: 13922
A126: 420049176 | B126: 420 | C126: BENJAMIN BANNEKER | D126: 49 | E126: CAMBRIDGE | F126: 176 | G126: MEDFORD | H126: 13.06551724 | I126: 10428 | J126: 3251 | K126: 893 | L126: 0 | M126: 14572
A127: 420049181 | B127: 420 | C127: BENJAMIN BANNEKER | D127: 49 | E127: CAMBRIDGE | F127: 181 | G127: METHUEN | H127: 1 | I127: 8884 | J127: 254 | K127: 893 | L127: 0 | M127: 10031
A128: 420049243 | B128: 420 | C128: BENJAMIN BANNEKER | D128: 49 | E128: CAMBRIDGE | F128: 243 | G128: QUINCY | H128: 1.903448276 | I128: 8884 | J128: 1755 | K128: 893 | L128: 0 | M128: 11532
A129: 420049244 | B129: 420 | C129: BENJAMIN BANNEKER | D129: 49 | E129: CAMBRIDGE | F129: 244 | G129: RANDOLPH | H129: 5.931034483 | I129: 8781 | J129: 2436 | K129: 893 | L129: 0 | M129: 12110
A130: 420049248 | B130: 420 | C130: BENJAMIN BANNEKER | D130: 49 | E130: CAMBRIDGE | F130: 248 | G130: REVERE | H130: 4 | I130: 8884 | J130: 576 | K130: 893 | L130: 0 | M130: 10353
A131: 420049262 | B131: 420 | C131: BENJAMIN BANNEKER | D131: 49 | E131: CAMBRIDGE | F131: 262 | G131: SAUGUS | H131: 1 | I131: 12639 | J131: 3879 | K131: 893 | L131: 0 | M131: 17411
A132: 420049274 | B132: 420 | C132: BENJAMIN BANNEKER | D132: 49 | E132: CAMBRIDGE | F132: 274 | G132: SOMERVILLE | H132: 4 | I132: 12235 | J132: 4383 | K132: 893 | L132: 0 | M132: 17511
A133: 420049308 | B133: 420 | C133: BENJAMIN BANNEKER | D133: 49 | E133: CAMBRIDGE | F133: 308 | G133: WALTHAM | H133: 0.8965517241 | I133: 12639 | J133: 6731 | K133: 893 | L133: 0 | M133: 20263
A134: 420049344 | B134: 420 | C134: BENJAMIN BANNEKER | D134: 49 | E134: CAMBRIDGE | F134: 344 | G134: WINCHESTER | H134: 3 | I134: 9389.289288 | J134: 2753 | K134: 893 | L134: 0 | M134: 13035.28929
A135: 420049347 | B135: 420 | C135: BENJAMIN BANNEKER | D135: 49 | E135: CAMBRIDGE | F135: 347 | G135: WOBURN | H135: 1.572413793 | I135: 10279.91868 | J135: 3798 | K135: 893 | L135: 0 | M135: 14970.91868
A136: 420049616 | B136: 420 | C136: BENJAMIN BANNEKER | D136: 49 | E136: CAMBRIDGE | F136: 616 | G136: AYER SHIRLEY | H136: 2 | I136: 10238.5049 | J136: 2727 | K136: 893 | L136: 0 | M136: 13858.5049
A137: 426149009 | B137: 426 | C137: COMMUNITY DAY - GATEWAY | D137: 149 | E137: LAWRENCE | F137: 9 | G137: ANDOVER | H137: 2 | I137: 13727 | J137: 6646 | K137: 893 | L137: 0 | M137: 21266
A138: 426149079 | B138: 426 | C138: COMMUNITY DAY - GATEWAY | D138: 149 | E138: LAWRENCE | F138: 79 | G138: DRACUT | H138: 1 | I138: 11746 | J138: 520 | K138: 893 | L138: 0 | M138: 13159
A139: 426149149 | B139: 426 | C139: COMMUNITY DAY - GATEWAY | D139: 149 | E139: LAWRENCE | F139: 149 | G139: LAWRENCE | H139: 227.989899 | I139: 12394 | J139: 0 | K139: 893 | L139: 1469 | M139: =SUM(I139:L139) -> 14756
A140: 426149181 | B140: 426 | C140: COMMUNITY DAY - GATEWAY | D140: 149 | E140: LAWRENCE | F140: 181 | G140: METHUEN | H140: 8.861952862 | I140: 11746 | J140: 336 | K140: 893 | L140: 0 | M140: 12975
A141: 428035035 | B141: 428 | C141: BROOKE ROSLINDALE | D141: 35 | E141: BOSTON | F141: 35 | G141: BOSTON | H141: 478.0799211 | I141: 11303 | J141: 3017 | K141: 893 | L141: 0 | M141: 15213
A142: 428035040 | B142: 428 | C142: BROOKE ROSLINDALE | D142: 35 | E142: BOSTON | F142: 40 | G142: BRAINTREE | H142: 1 | I142: 9938.430614 | J142: 2186 | K142: 893 | L142: 0 | M142: 13017.43061
A143: 428035044 | B143: 428 | C143: BROOKE ROSLINDALE | D143: 35 | E143: BOSTON | F143: 44 | G143: BROCKTON | H143: 4 | I143: 9425 | J143: 0 | K143: 893 | L143: 0 | M143: 10318
A144: 428035050 | B144: 428 | C144: BROOKE ROSLINDALE | D144: 35 | E144: BOSTON | F144: 50 | G144: CANTON | H144: 1 | I144: 9835.724997 | J144: 3394 | K144: 893 | L144: 0 | M144: 14122.725
A145: 428035073 | B145: 428 | C145: BROOKE ROSLINDALE | D145: 35 | E145: BOSTON | F145: 73 | G145: DEDHAM | H145: 3 | I145: 11440 | J145: 7188 | K145: 893 | L145: 0 | M145: 19521
A146: 428035220 | B146: 428 | C146: BROOKE ROSLINDALE | D146: 35 | E146: BOSTON | F146: 220 | G146: NORWOOD | H146: 4 | I146: 12386 | J146: 3866 | K146: 893 | L146: 0 | M146: 17145
A147: 428035243 | B147: 428 | C147: BROOKE ROSLINDALE | D147: 35 | E147: BOSTON | F147: 243 | G147: QUINCY | H147: 5 | I147: 10887 | J147: 2151 | K147: 893 | L147: 0 | M147: 13931
A148: 428035244 | B148: 428 | C148: BROOKE ROSLINDALE | D148: 35 | E148: BOSTON | F148: 244 | G148: RANDOLPH | H148: 8.261146497 | I148: 11053 | J148: 3066 | K148: 893 | L148: 0 | M148: 15012
A149: 428035285 | B149: 428 | C149: BROOKE ROSLINDALE | D149: 35 | E149: BOSTON | F149: 285 | G149: STOUGHTON | H149: 2 | I149: 12466 | J149: 3522 | K149: 893 | L149: 0 | M149: 16881
A150: 428035625 | B150: 428 | C150: BROOKE ROSLINDALE | D150: 35 | E150: BOSTON | F150: 625 | G150: BRIDGEWATER RAYNHAM | H150: 1 | I150: 12466 | J150: 1801 | K150: 893 | L150: 0 | M150: 15160
A151: 429163030 | B151: 429 | C151: KIPP ACADEMY LYNN | D151: 163 | E151: LYNN | F151: 30 | G151: BEVERLY | H151: 6 | I151: 12066 | J151: 2159 | K151: 893 | L151: 0 | M151: 15118
A152: 429163057 | B152: 429 | C152: KIPP ACADEMY LYNN | D152: 163 | E152: LYNN | F152: 57 | G152: CHELSEA | H152: 1.224358974 | I152: 12853 | J152: 197 | K152: 893 | L152: 0 | M152: 13943
A153: 429163163 | B153: 429 | C153: KIPP ACADEMY LYNN | D153: 163 | E153: LYNN | F153: 163 | G153: LYNN | H153: 988.3018418 | I153: 11676 | J153: 1 | K153: 893 | L153: 1596 | M153: 14166
A154: 429163164 | B154: 429 | C154: KIPP ACADEMY LYNN | D154: 163 | E154: LYNN | F154: 164 | G154: LYNNFIELD | H154: 2 | I154: 13071 | J154: 5880 | K154: 893 | L154: 0 | M154: 19844
A155: 429163168 | B155: 429 | C155: KIPP ACADEMY LYNN | D155: 163 | E155: LYNN | F155: 168 | G155: MARBLEHEAD | H155: 2 | I155: 8082 | J155: 3181 | K155: 893 | L155: 0 | M155: 12156
A156: 429163176 | B156: 429 | C156: KIPP ACADEMY LYNN | D156: 163 | E156: LYNN | F156: 176 | G156: MEDFORD | H156: 0.8846153846 | I156: 10789.82023 | J156: 3364 | K156: 893 | L156: 0 | M156: 15046.82023
A157: 429163229 | B157: 429 | C157: KIPP ACADEMY LYNN | D157: 163 | E157: LYNN | F157: 229 | G157: PEABODY | H157: 5.624878286 | I157: 11772 | J157: 1518 | K157: 893 | L157: 0 | M157: 14183
A158: 429163248 | B158: 429 | C158: KIPP ACADEMY LYNN | D158: 163 | E158: LYNN | F158: 248 | G158: REVERE | H158: 0.25 | I158: 11011 | J158: 714 | K158: 893 | L158: 0 | M158: 12618
A159: 429163258 | B159: 429 | C159: KIPP ACADEMY LYNN | D159: 163 | E159: LYNN | F159: 258 | G159: SALEM | H159: 9 | I159: 11412 | J159: 3766 | K159: 893 | L159: 0 | M159: 16071
A160: 429163262 | B160: 429 | C160: KIPP ACADEMY LYNN | D160: 163 | E160: LYNN | F160: 262 | G160: SAUGUS | H160: 5.92364492 | I160: 12258 | J160: 3762 | K160: 893 | L160: 0 | M160: 16913
A161: 429163291 | B161: 429 | C161: KIPP ACADEMY LYNN | D161: 163 | E161: LYNN | F161: 291 | G161: SWAMPSCOTT | H161: 4 | I161: 9607 | J161: 5135 | K161: 893 | L161: 0 | M161: 15635
A162: 430170009 | B162: 430 | C162: ADVANCED MATH AND SCIENCE ACADEMY | D162: 170 | E162: MARLBOROUGH | F162: 9 | G162: ANDOVER | H162: 1 | I162: 9234 | J162: 4471 | K162: 893 | L162: 0 | M162: 14598
A163: 430170014 | B163: 430 | C163: ADVANCED MATH AND SCIENCE ACADEMY | D163: 170 | E163: MARLBOROUGH | F163: 14 | G163: ASHLAND | H163: 31 | I163: 9826 | J163: 3139 | K163: 893 | L163: 0 | M163: 13858
A164: 430170017 | B164: 430 | C164: ADVANCED MATH AND SCIENCE ACADEMY | D164: 170 | E164: MARLBOROUGH | F164: 17 | G164: AUBURN | H164: 1 | I164: 10140 | J164: 2765 | K164: 893 | L164: 0 | M164: 13798
A165: 430170031 | B165: 430 | C165: ADVANCED MATH AND SCIENCE ACADEMY | D165: 170 | E165: MARLBOROUGH | F165: 31 | G165: BILLERICA | H165: 2 | I165: 10140 | J165: 4332 | K165: 893 | L165: 0 | M165: 15365
A166: 430170035 | B166: 430 | C166: ADVANCED MATH AND SCIENCE ACADEMY | D166: 170 | E166: MARLBOROUGH | F166: 35 | G166: BOSTON | H166: 1.939393939 | I166: 12549.07724 | J166: 3350 | K166: 893 | L166: 0 | M166: 16792.07724
A167: 430170056 | B167: 430 | C167: ADVANCED MATH AND SCIENCE ACADEMY | D167: 170 | E167: MARLBOROUGH | F167: 56 | G167: CHELMSFORD | H167: 1 | I167: 10140 | J167: 3111 | K167: 893 | L167: 0 | M167: 14144
A168: 430170064 | B168: 430 | C168: ADVANCED MATH AND SCIENCE ACADEMY | D168: 170 | E168: MARLBOROUGH | F168: 64 | G168: CLINTON | H168: 47.24915825 | I168: 9234 | J168: 1100 | K168: 893 | L168: 0 | M168: 11227
A169: 430170100 | B169: 430 | C169: ADVANCED MATH AND SCIENCE ACADEMY | D169: 170 | E169: MARLBOROUGH | F169: 100 | G169: FRAMINGHAM | H169: 39.05387205 | I169: 10171 | J169: 4391 | K169: 893 | L169: 0 | M169: 15455
A170: 430170101 | B170: 430 | C170: ADVANCED MATH AND SCIENCE ACADEMY | D170: 170 | E170: MARLBOROUGH | F170: 101 | G170: FRANKLIN | H170: 1 | I170: 8328 | J170: 1292 | K170: 893 | L170: 0 | M170: 10513
A171: 430170110 | B171: 430 | C171: ADVANCED MATH AND SCIENCE ACADEMY | D171: 170 | E171: MARLBOROUGH | F171: 110 | G171: GRAFTON | H171: 43 | I171: 9748 | J171: 1220 | K171: 893 | L171: 0 | M171: 11861
A172: 430170125 | B172: 430 | C172: ADVANCED MATH AND SCIENCE ACADEMY | D172: 170 | E172: MARLBOROUGH | F172: 125 | G172: HARVARD | H172: 3 | I172: 10140 | J172: 5146 | K172: 893 | L172: 0 | M172: 16179
A173: 430170136 | B173: 430 | C173: ADVANCED MATH AND SCIENCE ACADEMY | D173: 170 | E173: MARLBOROUGH | F173: 136 | G173: HOLLISTON | H173: 2 | I173: 9234 | J173: 2784 | K173: 893 | L173: 0 | M173: 12911
A174: 430170138 | B174: 430 | C174: ADVANCED MATH AND SCIENCE ACADEMY | D174: 170 | E174: MARLBOROUGH | F174: 138 | G174: HOPEDALE | H174: 1 | I174: 10140 | J174: 2573 | K174: 893 | L174: 0 | M174: 13606
A175: 430170139 | B175: 430 | C175: ADVANCED MATH AND SCIENCE ACADEMY | D175: 170 | E175: MARLBOROUGH | F175: 139 | G175: HOPKINTON | H175: 13 | I175: 9568 | J175: 2737 | K175: 893 | L175: 0 | M175: 13198
A176: 430170141 | B176: 430 | C176: ADVANCED MATH AND SCIENCE ACADEMY | D176: 170 | E176: MARLBOROUGH | F176: 141 | G176: HUDSON | H176: 84.97306397 | I176: 9467 | J176: 4510 | K176: 893 | L176: 0 | M176: 14870
A177: 430170153 | B177: 430 | C177: ADVANCED MATH AND SCIENCE ACADEMY | D177: 170 | E177: MARLBOROUGH | F177: 153 | G177: LEOMINSTER | H177: 1 | I177: 10140 | J177: 159 | K177: 893 | L177: 0 | M177: 11192
A178: 430170158 | B178: 430 | C178: ADVANCED MATH AND SCIENCE ACADEMY | D178: 170 | E178: MARLBOROUGH | F178: 158 | G178: LITTLETON | H178: 5 | I178: 9687 | J178: 3206 | K178: 893 | L178: 0 | M178: 13786
A179: 430170170 | B179: 430 | C179: ADVANCED MATH AND SCIENCE ACADEMY | D179: 170 | E179: MARLBOROUGH | F179: 170 | G179: MARLBOROUGH | H179: 465.2457912 | I179: 9227 | J179: 2965 | K179: 893 | L179: 0 | M179: 13085
A180: 430170174 | B180: 430 | C180: ADVANCED MATH AND SCIENCE ACADEMY | D180: 170 | E180: MARLBOROUGH | F180: 174 | G180: MAYNARD | H180: 22 | I180: 9157 | J180: 3299 | K180: 893 | L180: 0 | M180: 13349
A181: 430170177 | B181: 430 | C181: ADVANCED MATH AND SCIENCE ACADEMY | D181: 170 | E181: MARLBOROUGH | F181: 177 | G181: MEDWAY | H181: 2 | I181: 9415 | J181: 2892 | K181: 893 | L181: 0 | M181: 13200
A182: 430170198 | B182: 430 | C182: ADVANCED MATH AND SCIENCE ACADEMY | D182: 170 | E182: MARLBOROUGH | F182: 198 | G182: NATICK | H182: 7 | I182: 9914 | J182: 2709 | K182: 893 | L182: 0 | M182: 13516
A183: 430170207 | B183: 430 | C183: ADVANCED MATH AND SCIENCE ACADEMY | D183: 170 | E183: MARLBOROUGH | F183: 207 | G183: NEWTON | H183: 2 | I183: 9687 | J183: 5928 | K183: 893 | L183: 0 | M183: 16508
A184: 430170213 | B184: 430 | C184: ADVANCED MATH AND SCIENCE ACADEMY | D184: 170 | E184: MARLBOROUGH | F184: 213 | G184: NORTHBOROUGH | H184: 4 | I184: 8328 | J184: 5113 | K184: 893 | L184: 0 | M184: 14334
A185: 430170271 | B185: 430 | C185: ADVANCED MATH AND SCIENCE ACADEMY | D185: 170 | E185: MARLBOROUGH | F185: 271 | G185: SHREWSBURY | H185: 64 | I185: 9831 | J185: 2215 | K185: 893 | L185: 0 | M185: 12939
A186: 430170304 | B186: 430 | C186: ADVANCED MATH AND SCIENCE ACADEMY | D186: 170 | E186: MARLBOROUGH | F186: 304 | G186: UXBRIDGE | H186: 1 | I186: 10140 | J186: 1992 | K186: 893 | L186: 0 | M186: 13025
A187: 430170308 | B187: 430 | C187: ADVANCED MATH AND SCIENCE ACADEMY | D187: 170 | E187: MARLBOROUGH | F187: 308 | G187: WALTHAM | H187: 3 | I187: 9536 | J187: 5079 | K187: 893 | L187: 0 | M187: 15508
A188: 430170314 | B188: 430 | C188: ADVANCED MATH AND SCIENCE ACADEMY | D188: 170 | E188: MARLBOROUGH | F188: 314 | G188: WATERTOWN | H188: 2 | I188: 9234 | J188: 6858 | K188: 893 | L188: 0 | M188: 16985
A189: 430170317 | B189: 430 | C189: ADVANCED MATH AND SCIENCE ACADEMY | D189: 170 | E189: MARLBOROUGH | F189: 317 | G189: WELLESLEY | H189: 1 | I189: 10140 | J189: 6430 | K189: 893 | L189: 0 | M189: 17463
A190: 430170321 | B190: 430 | C190: ADVANCED MATH AND SCIENCE ACADEMY | D190: 170 | E190: MARLBOROUGH | F190: 321 | G190: WESTBOROUGH | H190: 5 | I190: 9105 | J190: 4649 | K190: 893 | L190: 0 | M190: 14647
A191: 430170322 | B191: 430 | C191: ADVANCED MATH AND SCIENCE ACADEMY | D191: 170 | E191: MARLBOROUGH | F191: 322 | G191: WEST BOYLSTON | H191: 15 | I191: 9415 | J191: 4247 | K191: 893 | L191: 0 | M191: 14555
A192: 430170326 | B192: 430 | C192: ADVANCED MATH AND SCIENCE ACADEMY | D192: 170 | E192: MARLBOROUGH | F192: 326 | G192: WESTFORD | H192: 3 | I192: 9536 | J192: 3087 | K192: 893 | L192: 0 | M192: 13516
A193: 430170348 | B193: 430 | C193: ADVANCED MATH AND SCIENCE ACADEMY | D193: 170 | E193: MARLBOROUGH | F193: 348 | G193: WORCESTER | H193: 38.996633 | I193: 10211 | J193: 14 | K193: 893 | L193: 0 | M193: 11118
A194: 430170616 | B194: 430 | C194: ADVANCED MATH AND SCIENCE ACADEMY | D194: 170 | E194: MARLBOROUGH | F194: 616 | G194: AYER SHIRLEY | H194: 3 | I194: 9536 | J194: 2540 | K194: 893 | L194: 0 | M194: 12969
A195: 430170620 | B195: 430 | C195: ADVANCED MATH AND SCIENCE ACADEMY | D195: 170 | E195: MARLBOROUGH | F195: 620 | G195: BERLIN BOYLSTON | H195: 17.90572391 | I195: 9763 | J195: 3930 | K195: 893 | L195: 0 | M195: 14586
A196: 430170695 | B196: 430 | C196: ADVANCED MATH AND SCIENCE ACADEMY | D196: 170 | E196: MARLBOROUGH | F196: 695 | G196: LINCOLN SUDBURY | H196: 1 | I196: 10140 | J196: 4716 | K196: 893 | L196: 0 | M196: 15749
A197: 430170710 | B197: 430 | C197: ADVANCED MATH AND SCIENCE ACADEMY | D197: 170 | E197: MARLBOROUGH | F197: 710 | G197: MENDON UPTON | H197: 10 | I197: 9778 | J197: 3252 | K197: 893 | L197: 0 | M197: 13923
A198: 430170725 | B198: 430 | C198: ADVANCED MATH AND SCIENCE ACADEMY | D198: 170 | E198: MARLBOROUGH | F198: 725 | G198: NASHOBA | H198: 8.939393939 | I198: 9778 | J198: 4298 | K198: 893 | L198: 0 | M198: 14969
A199: 430170730 | B199: 430 | C199: ADVANCED MATH AND SCIENCE ACADEMY | D199: 170 | E199: MARLBOROUGH | F199: 730 | G199: NORTHBORO SOUTHBORO | H199: 26.996633 | I199: 10140 | J199: 2597 | K199: 893 | L199: 0 | M199: 13630
A200: 430170735 | B200: 430 | C200: ADVANCED MATH AND SCIENCE ACADEMY | D200: 170 | E200: MARLBOROUGH | F200: 735 | G200: NORTH MIDDLESEX | H200: 3 | I200: 9536 | J200: 2731 | K200: 893 | L200: 0 | M200: 13160
A201: 430170775 | B201: 430 | C201: ADVANCED MATH AND SCIENCE ACADEMY | D201: 170 | E201: MARLBOROUGH | F201: 775 | G201: WACHUSETT | H201: 2 | I201: 10140 | J201: 924 | K201: 893 | L201: 0 | M201: 11957
A202: 431149128 | B202: 431 | C202: COMMUNITY DAY - R. KINGMAN WEBSTER | D202: 149 | E202: LAWRENCE | F202: 128 | G202: HAVERHILL | H202: 1.811447811 | I202: 11746 | J202: 252 | K202: 893 | L202: 0 | M202: 12891
A203: 431149149 | B203: 431 | C203: COMMUNITY DAY - R. KINGMAN WEBSTER | D203: 149 | E203: LAWRENCE | F203: 149 | G203: LAWRENCE | H203: 231.1279461 | I203: 11630 | J203: 0 | K203: 893 | L203: 1854 | M203: =SUM(I203:L203) -> 14377
A204: 431149181 | B204: 431 | C204: COMMUNITY DAY - R. KINGMAN WEBSTER | D204: 149 | E204: LAWRENCE | F204: 181 | G204: METHUEN | H204: 6.96969697 | I204: 11868 | J204: 340 | K204: 893 | L204: 0 | M204: 13101
A205: 432712020 | B205: 432 | C205: CAPE COD LIGHTHOUSE | D205: 712 | E205: MONOMOY | F205: 20 | G205: BARNSTABLE | H205: 61.3951049 | I205: 8307 | J205: 2156 | K205: 893 | L205: 0 | M205: 11356
A206: 432712172 | B206: 432 | C206: CAPE COD LIGHTHOUSE | D206: 712 | E206: MONOMOY | F206: 172 | G206: MASHPEE | H206: 1 | I206: 7892 | J206: 4423 | K206: 893 | L206: 0 | M206: 13208
... 672 more rows
